fUSD/lending_fUSD_20250221
["ID","MTS","AMOUNT","RATE_DAILY","PERIOD"]
[353945696,1740162648706,-1234.36302573,0.00012849,2]
[353945697,1740162648716,-644.24,0.00012849,2]
[353945698,1740162648726,-988.06301139,0.00012849,2]
[353945699,1740162648735,-1301.74048971,0.00012849,2]
[353945700,1740162648745,-761.7958,0.00012849,2]
[353945701,1740162648755,-232.86162654,0.000129,2]
[353945702,1740162648764,-158.96913356,0.00012963,2]
[353945703,1740162648774,-500.0,0.00013044,2]
[353945704,1740162648784,-500.0,0.00013044,2]
[353945705,1740162648793,-500.0,0.00013044,2]
[353945706,1740162648802,-500.0,0.0001306,2]
[353945707,1740162648812,-500.0,0.0001306,2]
[353945708,1740162648822,-285.28,0.00013197,2]
[353945709,1740162648832,-242.0,0.00013221,2]
[353945710,1740162648841,-432.4380807,0.00013292,2]
[353945711,1740162648851,-3173.2453,0.00013319,2]
[353945712,1740162648860,-50356.2277286,0.0001337,2]
[353945713,1740162648870,-487.55955804,0.000134,2]
[353945714,1740162648879,-1000.0,0.000134,2]
[353945715,1740162648889,-222.6727031,0.000134,2]
[353945716,1740162648898,-3494.5428039,0.000134,2]
[353945717,1740162648908,-158.96913356,0.000134,2]
[353945718,1740162648917,-501.77784524,0.00013418,2]
[353945719,1740162648926,-1796.78,0.00013418,2]
[353945720,1740162648935,-507.07363615,0.00013418,2]
[353945721,1740162648944,-1451.63,0.00013418,2]
[353945722,1740162648953,-500.0,0.00013418,2]
[353945723,1740162648962,-442.11318057,0.00013418,2]
[353945724,1740162648971,-500.0,0.00013418,2]
[353945725,1740162648980,-500.0,0.00013418,2]
[353945726,1740162648988,-500.0,0.00013418,2]
[353945727,1740162648997,-576.18,0.00013418,2]
[353945728,1740162649006,-500.0,0.00013418,2]
[353945729,1740162649015,-500.0,0.00013418,2]
[353945730,1740162649024,-1128.08,0.00013418,2]
[353945731,1740162649034,-500.0,0.00013418,2]
[353945732,1740162649043,-500.0,0.00013418,2]
[353945733,1740162649052,-500.0,0.00013418,2]
[353945734,1740162649062,-732.98,0.00013418,2]
[353945735,1740162649074,-500.0,0.00013418,2]
[353945736,1740162649083,-589.2,0.00013418,2]
[353945737,1740162649093,-1571.34,0.00013418,2]
[353945738,1740162649102,-500.0,0.00013418,2]
[353945739,1740162649111,-1029.37,0.00013418,2]
[353945740,1740162649121,-1382.81,0.00013418,2]
[353945741,1740162649133,-1554.74,0.00013418,2]
[353945742,1740162649142,-500.0,0.00013418,2]
[353945743,1740162649151,-639.86,0.00013418,2]
[353945744,1740162649160,-622.26,0.00013418,2]
[353945745,1740162649170,-555.78,0.00013418,2]
[353945746,1740162649180,-500.0,0.00013418,2]
[353945747,1740162649190,-828.78,0.00013418,2]
[353945748,1740162649199,-154.514447,0.00013418,2]
[353945749,1740162649214,-500.0,0.00013418,2]
[353945750,1740162649229,-500.0,0.00013418,2]
[353945751,1740162649238,-500.0,0.00013418,2]
[353945752,1740162649247,-500.0,0.00013418,2]
[353945753,1740162649256,-2430.596389,0.00013418,2]
[353945754,1740162649266,-1184.53,0.00013418,2]
[353945755,1740162649275,-589.27,0.00013418,2]
[353945756,1740162649287,-562.81,0.00013418,2]
[353945757,1740162649297,-2625.177862,0.00013418,2]
[353945758,1740162649306,-770.23,0.00013418,2]
[353945759,1740162649316,-500.0,0.00013418,2]
[353945760,1740162649328,-748.48,0.00013418,2]
[353945761,1740162649338,-166.463714,0.00013418,2]
[353945762,1740162649348,-1741.94,0.00013418,2]
[353945763,1740162649357,-500.0,0.00013418,2]
[353945764,1740162649367,-1336.95,0.00013418,2]
[353945765,1740162649376,-500.0,0.00013418,2]
[353945766,1740162649386,-500.0,0.00013418,2]
[353945767,1740162649395,-500.0,0.00013418,2]
[353945768,1740162649406,-151.431257,0.00013418,2]
[353945769,1740162649416,-500.0,0.00013418,2]
[353945770,1740162649425,-557.79,0.00013418,2]
[353945771,1740162649434,-500.0,0.00013418,2]
[353945772,1740162649443,-150.175846,0.00013418,2]
[353945773,1740162649452,-500.0,0.00013418,2]
[353945774,1740162649462,-500.0,0.00013418,2]
[353945775,1740162649471,-702.25,0.00013418,2]
[353945776,1740162649481,-500.0,0.00013418,2]
[353945777,1740162649491,-500.0,0.00013418,2]
[353945778,1740162649500,-598.13,0.00013418,2]
[353945779,1740162649509,-748.22,0.00013418,2]
[353945780,1740162649518,-2262.4,0.00013418,2]
[353945781,1740162649527,-1494.44,0.00013418,2]
[353945782,1740162649537,-500.0,0.00013418,2]
[353945783,1740162649546,-500.0,0.00013418,2]
[353945784,1740162649555,-1138.18,0.00013418,2]
[353945785,1740162649564,-500.0,0.00013418,2]
[353945786,1740162649575,-500.0,0.00013418,2]
[353945787,1740162649584,-500.0,0.00013418,2]
[353945788,1740162649593,-1488.81,0.00013418,2]
[353945789,1740162649602,-704.96,0.00013418,2]
[353945790,1740162649611,-500.0,0.00013418,2]
[353945791,1740162649620,-1321.37,0.00013418,2]
[353945792,1740162649629,-1906.99,0.00013418,2]
[353945793,1740162649638,-842.47,0.00013418,2]
[353945794,1740162649647,-500.0,0.00013418,2]
[353945795,1740162649656,-1961.67,0.00013418,2]
[353945796,1740162649665,-1513.63,0.00013418,2]
[353945797,1740162649674,-502.08804632,0.00013418,2]
[353945798,1740162649684,-500.0,0.00013418,2]
[353945799,1740162649693,-500.0,0.00013418,2]
[353945800,1740162649702,-532.5998672,0.00013418,2]
[353945801,1740162649711,-832.35,0.00013418,2]
[353945802,1740162649720,-500.0,0.00013418,2]
[353945803,1740162649729,-1818.91,0.00013418,2]
[353945804,1740162649738,-2891.75,0.00013418,2]
[353945805,1740162649747,-500.0,0.00013418,2]
[353945806,1740162649757,-3871.38,0.00013418,2]
[353945807,1740162649766,-1342.52,0.00013418,2]
[353945808,1740162649775,-1615.76,0.00013418,2]
[353945809,1740162649785,-500.0,0.00013418,2]
[353945810,1740162649794,-1911.86,0.00013418,2]
[353945811,1740162649804,-830.38,0.00013418,2]
[353945812,1740162649813,-500.0,0.00013418,2]
[353945813,1740162649825,-5102.0,0.00013418,2]
[353945814,1740162649834,-2110.31,0.00013418,2]
[353945815,1740162650009,-646.41,0.00013418,2]
[353945816,1740162650018,-616.71,0.00013418,2]
[353945817,1740162650027,-3055.28,0.00013418,2]
[353945818,1740162650037,-1566.59,0.00013418,2]
[353945819,1740162650047,-953.99,0.00013418,2]
[353945820,1740162650056,-1898.07,0.00013418,2]
[353945821,1740162650065,-4944.6,0.00013418,2]
[353945822,1740162650076,-2936.56,0.00013418,2]
[353945823,1740162650085,-500.0,0.00013418,2]
[353945824,1740162650095,-3347.08,0.00013418,2]
[353945825,1740162650104,-3791.06,0.00013418,2]
[353945826,1740162650113,-1062.24,0.00013418,2]
[353945827,1740162650127,-500.0,0.00013418,2]
[353945828,1740162650136,-7361.07,0.00013418,2]
[353945829,1740162650147,-4376.72,0.00013418,2]
[353945830,1740162650155,-3917.88,0.00013418,2]
[353945831,1740162650166,-711.48,0.00013418,2]
[353945832,1740162650175,-2548.59,0.00013418,2]
[353945833,1740162650184,-1955.44,0.00013418,2]
[353945834,1740162650193,-500.0,0.00013418,2]
[353945835,1740162650202,-1977.94,0.00013418,2]
[353945836,1740162650213,-2925.09,0.00013418,2]
[353945837,1740162650222,-2591.12,0.00013418,2]
[353945838,1740162650231,-1638.4,0.00013418,2]
[353945839,1740162650240,-500.0,0.00013418,2]
[353945840,1740162650249,-500.0,0.00013418,2]
[353945841,1740162650258,-536.82,0.00013418,2]
[353945842,1740162650267,-150.175843,0.00013418,2]
[353945843,1740162650276,-1261.46,0.00013418,2]
[353945844,1740162650286,-3461.37,0.00013418,2]
[353945845,1740162650296,-1363.74,0.00013418,2]
[353945846,1740162650308,-500.0,0.00013418,2]
[353945847,1740162650319,-2177.56,0.00013418,2]
[353945848,1740162650330,-952.38,0.00013418,2]
[353945849,1740162650340,-500.0,0.00013418,2]
[353945850,1740162650351,-2639.41,0.00013418,2]
[353945851,1740162650361,-2633.79,0.00013418,2]
[353945852,1740162650372,-1116.21,0.00013418,2]
[353945853,1740162650382,-2855.34,0.00013418,2]
[353945854,1740162650391,-1754.45,0.00013418,2]
[353945855,1740162650400,-1814.01,0.00013418,2]
[353945856,1740162650409,-1657.45,0.00013418,2]
[353945857,1740162650419,-2773.18,0.00013418,2]
[353945858,1740162650428,-712.6,0.00013418,2]
[353945859,1740162650437,-2736.44,0.00013418,2]
[353945860,1740162650446,-274.58042911,0.00013418,2]
[353945861,1740162650455,-1173.63,0.00013418,2]
[353945862,1740162650465,-3047.78,0.00013418,2]
[353945863,1740162650474,-1955.93,0.00013418,2]
[353945864,1740162650484,-500.0,0.00013418,2]
[353945865,1740162650494,-5246.68,0.00013418,2]
[353945866,1740162650503,-1307.18,0.00013418,2]
[353945867,1740162650511,-993.59,0.00013418,2]
[353945868,1740162650521,-500.0,0.00013418,2]
[353945869,1740162650529,-500.0,0.00013418,2]
[353945870,1740162650538,-500.0,0.00013418,2]
[353945871,1740162650547,-1144.28,0.00013418,2]
[353945872,1740162650556,-1773.91,0.00013418,2]
[353945873,1740162650565,-2153.78,0.00013418,2]
[353945874,1740162650576,-2064.06,0.00013418,2]
[353945875,1740162650585,-802.59,0.00013418,2]
[353945876,1740162650594,-1649.75,0.00013418,2]
[353945877,1740162650603,-2835.0,0.00013418,2]
[353945878,1740162650612,-500.0,0.00013418,2]
[353945879,1740162650622,-870.73,0.00013418,2]
[353945880,1740162650632,-151.0,0.00013418,2]
[353945881,1740162650641,-2067.8,0.00013418,2]
[353945882,1740162650651,-151.0,0.00013418,2]
[353945883,1740162650660,-1609.28,0.00013418,2]
[353945884,1740162650670,-151.0,0.00013418,2]
[353945885,1740162650678,-2386.59,0.00013418,2]
[353945886,1740162650687,-1413.43,0.00013418,2]
[353945887,1740162650696,-151.0,0.00013418,2]
[353945888,1740162650706,-500.0,0.00013418,2]
[353945889,1740162650715,-2011.33,0.00013418,2]
[353945890,1740162650725,-1918.79,0.00013418,2]
[353945891,1740162650734,-5503.51,0.00013418,2]
[353945892,1740162650744,-151.0,0.00013418,2]
[353945893,1740162650753,-500.0,0.00013418,2]
[353945894,1740162650762,-2736.49,0.00013418,2]
[353945895,1740162650772,-501.42376727,0.00013418,2]
[353945896,1740162650781,-500.0,0.00013418,2]
[353945897,1740162650790,-229.121529,0.00013418,2]
[353945898,1740162650799,-500.0,0.00013418,2]
[353945899,1740162650809,-756.79,0.00013418,2]
[353945900,1740162650820,-2221.47,0.00013418,2]
[353945901,1740162650830,-1762.77,0.00013418,2]
[353945902,1740162650839,-521.29905419,0.00013418,2]
[353945903,1740162650848,-2793.71,0.00013418,2]
[353945904,1740162650857,-210.39801675,0.00013418,2]
[353945905,1740162650866,-500.0,0.00013418,2]
[353945906,1740162650875,-501.1776116,0.00013418,2]
[353945907,1740162650884,-3139.37,0.00013418,2]
[353945908,1740162650893,-1713.89,0.00013418,2]
[353945909,1740162650903,-196.05022393,0.00013418,2]
[353945910,1740162650913,-3141.54,0.00013418,2]
[353945911,1740162650923,-500.0,0.00013418,2]
[353945912,1740162650933,-500.0,0.00013418,2]
[353945913,1740162650943,-6896.24,0.00013418,2]
[353945914,1740162650952,-500.0,0.00013418,2]
[353945915,1740162650962,-500.0,0.00013418,2]
[353945916,1740162650972,-1219.05,0.00013418,2]
[353945917,1740162650982,-500.03,0.00013419,2]
[353945918,1740162650992,-500.0,0.00013419,2]
[353945919,1740162651002,-498.42913354,0.00013419,2]
[353945920,1740162651011,-500.0,0.00013419,2]
[353945921,1740162651020,-500.0,0.00013419,2]
[353945922,1740162651030,-500.0,0.00013419,2]
[353945923,1740162651040,-500.0,0.00013419,2]
[353945924,1740162651050,-500.0,0.00013419,2]
[353945925,1740162651060,-656.1,0.00013419,2]
[353945926,1740162651073,-302.29254669,0.00013419,2]
[353945927,1740162651083,-500.0,0.00013419,2]
[353945928,1740162651093,-500.0,0.00013419,2]
[353945929,1740162651102,-500.0,0.00013419,2]
[353945930,1740162651112,-500.0,0.00013419,2]
[353945931,1740162651123,-500.0,0.00013419,2]
[353945932,1740162651135,-500.0,0.00013419,2]
[353945933,1740162651145,-500.0,0.00013419,2]
[353945934,1740162651154,-500.0,0.00013419,2]
[353945935,1740162651164,-400.94522482,0.00013419,2]
[353945936,1740162651174,-822.72,0.00013419,2]
[353945937,1740162651184,-512.05213136,0.00013419,2]
[353945938,1740162651194,-500.0,0.00013419,2]
[353945939,1740162651204,-500.0,0.00013419,2]
[353945940,1740162651214,-500.0,0.00013419,2]
[353945941,1740162651224,-500.0,0.00013419,2]
[353945942,1740162651233,-600.07,0.00013419,2]
[353945943,1740162651242,-501.52,0.00013419,2]
[353945944,1740162651252,-500.0,0.00013419,2]
[353945945,1740162651261,-500.0,0.00013419,2]
[353945946,1740162651271,-500.0,0.00013419,2]
[353945947,1740162651280,-500.0,0.00013419,2]
[353945948,1740162651289,-500.0,0.00013419,2]
[353945949,1740162651299,-500.0,0.00013419,2]
[353945950,1740162651308,-500.0,0.00013419,2]
[353945951,1740162651317,-500.0,0.00013419,2]
[353945952,1740162651330,-500.0,0.00013419,2]
[353945953,1740162651339,-500.0,0.00013419,2]
[353945954,1740162651348,-500.0,0.00013419,2]
[353945955,1740162651357,-500.0,0.00013419,2]
[353945956,1740162651367,-860.7,0.00013419,2]
[353945957,1740162651375,-500.0,0.00013419,2]
[353945958,1740162651384,-500.0,0.00013419,2]
[353945959,1740162651393,-612.08,0.00013419,2]
[353945960,1740162651404,-624.67,0.00013419,2]
[353945961,1740162651413,-500.0,0.00013419,2]
[353945962,1740162651422,-641.55,0.00013419,2]
[353945963,1740162651431,-500.0,0.00013419,2]
[353945964,1740162651440,-550.12102332,0.00013419,2]
[353945965,1740162651449,-500.0,0.00013419,2]
[353945966,1740162651458,-500.0,0.00013419,2]
[353945967,1740162651467,-500.0,0.00013419,2]
[353945968,1740162651477,-630.92,0.00013419,2]
[353945969,1740162651486,-761.18,0.00013419,2]
[353945970,1740162651497,-500.0,0.00013419,2]
[353945971,1740162651506,-500.0,0.00013419,2]
[353945972,1740162651518,-500.0,0.00013419,2]
[353945973,1740162651530,-478.99607452,0.00013419,2]
[353945974,1740162651539,-500.0,0.00013419,2]
[353945975,1740162651548,-500.0,0.00013419,2]
[353945976,1740162651558,-500.0,0.00013419,2]
[353945977,1740162651567,-503.19489683,0.00013419,2]
[353945978,1740162651579,-999.7,0.00013419,2]
[353945979,1740162651588,-500.0,0.00013419,2]
[353945980,1740162651597,-500.0,0.00013419,2]
[353945981,1740162651607,-500.0,0.00013419,2]
[353945982,1740162651616,-500.0,0.00013419,2]
[353945983,1740162651625,-500.0,0.00013419,2]
[353945984,1740162651634,-500.0,0.00013419,2]
[353945985,1740162651643,-500.0,0.00013419,2]
[353945986,1740162651652,-500.0,0.00013419,2]
[353945987,1740162651661,-609.71,0.00013419,2]
[353945988,1740162651670,-500.0,0.00013419,2]
[353945989,1740162651679,-500.0,0.00013419,2]
[353945990,1740162651689,-500.0,0.00013419,2]
[353945991,1740162651698,-742.66,0.00013419,2]
[353945992,1740162651707,-500.0,0.00013419,2]
[353945993,1740162651717,-500.0,0.00013419,2]
[353945994,1740162651726,-500.0,0.00013419,2]
[353945995,1740162651735,-500.0,0.00013419,2]
[353945996,1740162651744,-500.0,0.00013419,2]
[353945997,1740162651754,-501.6,0.00013419,2]
[353945998,1740162651763,-500.0,0.00013419,2]
[353945999,1740162651772,-500.0,0.00013419,2]
[353946000,1740162651781,-500.0,0.00013419,2]
[353946001,1740162651790,-500.0,0.00013419,2]
[353946002,1740162651799,-500.0,0.00013419,2]
[353946003,1740162651809,-500.0,0.00013419,2]
[353946004,1740162651818,-500.0,0.00013419,2]
[353946005,1740162651828,-500.0,0.00013419,2]
[353946006,1740162651837,-500.0,0.00013419,2]
[353946007,1740162651846,-500.0,0.00013419,2]
[353946008,1740162651856,-500.0,0.00013419,2]
[353946009,1740162651865,-500.0,0.00013419,2]
[353946010,1740162651874,-500.0,0.00013419,2]
[353946011,1740162651883,-500.0,0.00013419,2]
[353946012,1740162651893,-497.08164926,0.00013419,2]
[353946013,1740162651902,-1032.2,0.00013419,2]
[353946014,1740162651911,-500.0,0.00013419,2]
[353946015,1740162651921,-500.0,0.00013419,2]
[353946016,1740162651930,-500.0,0.00013419,2]
[353946017,1740162651939,-500.0,0.00013419,2]
[353946018,1740162651948,-500.0,0.00013419,2]
[353946019,1740162651957,-500.0,0.00013419,2]
[353946020,1740162651966,-500.0,0.00013419,2]
[353946021,1740162651975,-500.0,0.00013419,2]
[353946022,1740162651984,-500.0,0.00013419,2]
[353946023,1740162651993,-500.0,0.00013419,2]
[353946024,1740162652003,-500.0,0.00013419,2]
[353946025,1740162652012,-500.0,0.00013419,2]
[353946026,1740162652021,-500.0,0.00013419,2]
[353946027,1740162652030,-500.0,0.00013419,2]
[353946028,1740162652040,-500.0,0.00013419,2]
[353946029,1740162652049,-500.0,0.00013419,2]
[353946030,1740162652058,-500.0,0.00013419,2]
[353946031,1740162652067,-500.0,0.00013419,2]
[353946032,1740162652079,-503.57545854,0.00013419,2]
[353946033,1740162652088,-500.0,0.00013419,2]
[353946034,1740162652097,-749.57,0.00013419,2]
[353946035,1740162652106,-500.0,0.00013419,2]
[353946036,1740162652115,-500.0,0.00013419,2]
[353946037,1740162652124,-500.0,0.00013419,2]
[353946038,1740162652134,-500.0,0.00013419,2]
[353946039,1740162652144,-500.0,0.00013419,2]
[353946040,1740162652153,-501.9530557,0.00013419,2]
[353946041,1740162652162,-635.98,0.00013419,2]
[353946042,1740162652173,-500.0,0.00013419,2]
[353946043,1740162652182,-576.96,0.00013419,2]
[353946044,1740162652192,-500.0,0.00013419,2]
[353946045,1740162652201,-500.0,0.00013419,2]
[353946046,1740162652211,-500.0,0.00013419,2]
[353946047,1740162652221,-500.0,0.00013419,2]
[353946048,1740162652230,-500.0,0.00013419,2]
[353946049,1740162652239,-500.0,0.00013419,2]
[353946050,1740162652248,-500.0,0.00013419,2]
[353946051,1740162652257,-500.0,0.00013419,2]
[353946052,1740162652266,-500.0,0.00013419,2]
[353946053,1740162652275,-500.0,0.00013419,2]
[353946054,1740162652284,-500.0,0.00013419,2]
[353946055,1740162652293,-500.0,0.00013419,2]
[353946056,1740162652303,-500.0,0.00013419,2]
[353946057,1740162652312,-500.0,0.00013419,2]
[353946058,1740162652323,-500.0,0.00013419,2]
[353946059,1740162652332,-500.0,0.00013419,2]
[353946060,1740162652340,-500.0,0.00013419,2]
[353946061,1740162652349,-500.0,0.00013419,2]
[353946062,1740162652358,-532.19,0.00013419,2]
[353946063,1740162652367,-500.0,0.00013419,2]
[353946064,1740162652376,-685.67,0.00013419,2]
[353946065,1740162652385,-500.0,0.00013419,2]
[353946066,1740162652394,-500.0,0.00013419,2]
[353946067,1740162652404,-500.0,0.00013419,2]
[353946068,1740162652413,-500.0,0.00013419,2]
[353946069,1740162652422,-500.0,0.00013419,2]
[353946070,1740162652431,-500.0,0.00013419,2]
[353946071,1740162652440,-500.0,0.00013419,2]
[353946072,1740162652449,-506.27748045,0.00013419,2]
[353946073,1740162652458,-500.0,0.00013419,2]
[353946074,1740162652468,-371.63988709,0.00013419,2]
[353946075,1740162652479,-500.0,0.00013419,2]
[353946076,1740162652489,-500.0,0.00013419,2]
[353946077,1740162652498,-500.0,0.00013419,2]
[353946078,1740162652508,-500.0,0.00013419,2]
[353946079,1740162652517,-530.86010652,0.00013419,2]
[353946080,1740162652526,-500.0,0.00013419,2]
[353946081,1740162652535,-500.0,0.00013419,2]
[353946082,1740162652544,-500.0,0.00013419,2]
[353946083,1740162652553,-500.0,0.00013419,2]
[353946084,1740162652562,-500.0,0.00013419,2]
[353946085,1740162652573,-500.0,0.00013419,2]
[353946086,1740162652582,-500.0,0.00013419,2]
[353946087,1740162652591,-500.0,0.00013419,2]
[353946088,1740162652600,-500.0,0.00013419,2]
[353946089,1740162652609,-500.0,0.00013419,2]
[353946090,1740162652618,-500.0,0.00013419,2]
[353946091,1740162652627,-500.0,0.00013419,2]
[353946092,1740162652636,-500.0,0.00013419,2]
[353946093,1740162652645,-500.0,0.00013419,2]
[353946094,1740162652654,-500.0,0.00013419,2]
[353946095,1740162652664,-500.0,0.00013419,2]
[353946096,1740162652673,-500.0,0.00013419,2]
[353946097,1740162652682,-500.0,0.00013419,2]
[353946098,1740162652691,-560.57,0.00013419,2]
[353946099,1740162652701,-547.33,0.00013419,2]
[353946100,1740162652710,-475.05985746,0.00013419,2]
[353946101,1740162652719,-500.0,0.00013419,2]
[353946102,1740162652729,-500.0,0.00013419,2]
[353946103,1740162652738,-224.20108924,0.00013419,2]
[353946104,1740162652747,-500.0,0.00013419,2]
[353946105,1740162652756,-500.0,0.00013419,2]
[353946106,1740162652765,-500.0,0.00013419,2]
[353946107,1740162652775,-500.0,0.00013419,2]
[353946108,1740162652784,-500.0,0.00013419,2]
[353946109,1740162652793,-500.0,0.00013419,2]
[353946110,1740162652802,-500.0,0.00013419,2]
[353946111,1740162652811,-514.7777269,0.00013419,2]
[353946112,1740162652821,-500.0,0.00013419,2]
[353946113,1740162652830,-500.0,0.00013419,2]
[353946114,1740162652839,-500.0,0.00013419,2]
[353946115,1740162652848,-500.0,0.00013419,2]
[353946116,1740162652857,-500.0,0.00013419,2]
[353946117,1740162652866,-500.0,0.00013419,2]
[353946118,1740162652875,-500.0,0.00013419,2]
[353946119,1740162652884,-500.0,0.00013419,2]
[353946120,1740162652894,-500.0,0.00013419,2]
[353946121,1740162652902,-500.0,0.00013419,2]
[353946122,1740162652911,-500.0,0.00013419,2]
[353946123,1740162652920,-500.0,0.00013419,2]
[353946124,1740162652929,-500.0,0.00013419,2]
[353946125,1740162652939,-500.0,0.00013419,2]
[353946126,1740162652948,-500.0,0.00013419,2]
[353946127,1740162652957,-500.0,0.00013419,2]
[353946128,1740162652966,-500.0,0.00013419,2]
[353946129,1740162652975,-325.42755532,0.00013419,2]
[353946130,1740162652984,-500.0,0.00013419,2]
[353946131,1740162652994,-500.0,0.00013419,2]
[353946132,1740162653163,-500.0,0.00013419,2]
[353946133,1740162653175,-500.0,0.00013419,2]
[353946134,1740162653184,-500.0,0.00013419,2]
[353946135,1740162653193,-500.0,0.00013419,2]
[353946136,1740162653203,-500.0,0.00013419,2]
[353946137,1740162653213,-500.0,0.00013419,2]
[353946138,1740162653223,-847.0,0.00013419,2]
[353946139,1740162653232,-500.0,0.00013419,2]
[353946140,1740162653241,-500.0,0.00013419,2]
[353946141,1740162653250,-500.0,0.00013419,2]
[353946142,1740162653259,-685.59,0.00013419,2]
[353946143,1740162653268,-506.29704975,0.00013419,2]
[353946144,1740162653277,-500.0,0.00013419,2]
[353946145,1740162653286,-732.2,0.00013419,2]
[353946146,1740162653295,-500.0,0.00013419,2]
[353946147,1740162653304,-848.06,0.00013419,2]
[353946148,1740162653313,-500.0,0.00013419,2]
[353946149,1740162653324,-500.0,0.00013419,2]
[353946150,1740162653333,-500.0,0.00013419,2]
[353946151,1740162653343,-500.0,0.00013419,2]
[353946152,1740162653352,-500.0,0.00013419,2]
[353946153,1740162653362,-500.0,0.00013419,2]
[353946154,1740162653371,-500.0,0.00013419,2]
[353946155,1740162653380,-500.0,0.00013419,2]
[353946156,1740162653389,-500.0,0.00013419,2]
[353946157,1740162653398,-500.0,0.00013419,2]
[353946158,1740162653407,-500.0,0.00013419,2]
[353946159,1740162653415,-500.0,0.00013419,2]
[353946160,1740162653424,-1342.56,0.00013419,2]
[353946161,1740162653434,-500.0,0.00013419,2]
[353946162,1740162653443,-748.11,0.00013419,2]
[353946163,1740162653452,-500.0,0.00013419,2]
[353946164,1740162653461,-500.0,0.00013419,2]
[353946165,1740162653470,-500.0,0.00013419,2]
[353946166,1740162653479,-502.61423243,0.00013419,2]
[353946167,1740162653489,-500.0,0.00013419,2]
[353946168,1740162653498,-500.0,0.00013419,2]
[353946169,1740162653507,-835.31,0.00013419,2]
[353946170,1740162653516,-500.0,0.00013419,2]
[353946171,1740162653526,-500.0,0.00013419,2]
[353946172,1740162653535,-500.0,0.00013419,2]
[353946173,1740162653544,-500.0,0.00013419,2]
[353946174,1740162653553,-500.0,0.00013419,2]
[353946175,1740162653563,-500.0,0.00013419,2]
[353946176,1740162653573,-500.0,0.00013419,2]
[353946177,1740162653583,-500.0,0.00013419,2]
[353946178,1740162653592,-552.84,0.00013419,2]
[353946179,1740162653602,-500.0,0.00013419,2]
[353946180,1740162653611,-217.64186471,0.00013419,2]
[353946181,1740162653621,-880.67,0.00013419,2]
[353946182,1740162653630,-500.0,0.00013419,2]
[353946183,1740162653639,-500.0,0.00013419,2]
[353946184,1740162653649,-500.0,0.00013419,2]
[353946185,1740162653658,-500.0,0.00013419,2]
[353946186,1740162653668,-524.2,0.00013419,2]
[353946187,1740162653677,-500.0,0.00013419,2]
[353946188,1740162653686,-596.6,0.00013419,2]
[353946189,1740162653696,-1066.04,0.00013419,2]
[353946190,1740162653705,-500.0,0.00013419,2]
[353946191,1740162653715,-500.0,0.00013419,2]
[353946192,1740162653725,-553.56654617,0.00013419,2]
[353946193,1740162653734,-425.17875175,0.00013419,2]
[353946194,1740162653744,-551.77,0.00013419,2]
[353946195,1740162653753,-730.08,0.00013419,2]